{"text_format":"1","workbook":"xlsx","n_sheets":4,"sheets":["اطلاعات","توضیح ستونها","روش دوم محاسبه ","نکات دستورالعمل"],"not_rendered":{"charts":0,"images":0,"macros":1,"external_links":0,"defined_names":0,"comments":0,"pivot_tables":0},"unopened":[],"bounds":{"document_bytes":16777216,"sheet_cells":100000,"rows_first":2000,"rows_last":500,"rows_between":2000,"halvings":0,"cell_chars":16384,"cell_head_chars":4096},"cells_cut":0,"cells_raw":0,"read":"whole","date_system":"1900"}

{"sheet":"اطلاعات","index":0,"n_rows":387,"n_cols":35,"rows_kept":387,"cut":false,"hidden":false,"merged":[]}
["کد صورت حساب در سیستم حسابداری","کد طرف حساب در سیستم حسابداری","تاریخ و زمان صدور صورت حساب","نوع صورت حساب","الگوی صورت حساب","موضوع صورت حساب","روش تسویه","کد کالا در سیستم حسابداری","تعداد/مقدار",null,null,null,null,null,null,null,null,null,null,null,null,null,null,"شماره پروانه گمرکی ","شماره کوتاژ اظهارنامه گمرکی ","تاریخ کوتاژ اظهارنامه گمرکی ","کد گمرک محل اظهار","نوع ارز ","مجموع ارزش ارزی","مجموع وزن خالص (کیلوگرم)","نرخ برابری ارز","مبلغ کل کالا/خدمت ریالی","وزن خالص (کیلوگرم)",null,"نتیجه بررسی"]
[666,null,"1404/06/24",{"$f":"IF(A2>0,1,\"\")","v":1},{"$f":"IF(A2>0,7,\"\")","v":7},{"$f":"IF(A2>0,1,\"\")","v":1},{"$f":"IF(A2>0,1,\"\")","v":1},32070022,1199,null,null,null,null,null,null,null,null,null,null,null,null,null,null,401942,401942,15104,60604,"USD",10949.75,1936,965715.29030343157,2509833539,299,null,"اعشار نامجاز در ستون AE (نرخ برابری باید صحیح باشد) | عدم تطابق مبلغ: مجموع AF برابر با AE×AC نیست. اختلاف = +10,574,341,000/"]
[666,null,"1404/06/24",{"$f":"IF(A3>0,1,\"\")","v":1},{"$f":"IF(A3>0,7,\"\")","v":7},{"$f":"IF(A3>0,1,\"\")","v":1},{"$f":"IF(A3>0,1,\"\")","v":1},31070004,3059,null,null,null,null,null,null,null,null,null,null,null,null,null,null,401942,401942,15104,60604,"USD",10949.75,1936,965715.29030343157,1329476799,202,null,"اعشار نامجاز در ستون AE (نرخ برابری باید صحیح باشد) | عدم تطابق مبلغ: مجموع AF برابر با AE×AC نیست. اختلاف = +10,574,341,000/"]
[666,null,"1404/06/24",1,7,1,1,32070016,603,null,null,null,null,null,null,null,null,null,null,null,null,null,null,401942,401942,15104,60604,"USD",10949.75,1936,965715.29030343157,2853659582,690,null,"اعشار نامجاز در ستون AE (نرخ برابری باید صحیح باشد) | عدم تطابق مبلغ: مجموع AF برابر با AE×AC نیست. اختلاف = +10,574,341,000/"]
[666,null,"1404/06/24",1,7,1,1,30070019,20094,null,null,null,null,null,null,null,null,null,null,null,null,null,null,401942,401942,15104,60604,"USD",10949.75,1936,965715.29030343157,3881371080,745,null,"اعشار نامجاز در ستون AE (نرخ برابری باید صحیح باشد) | عدم تطابق مبلغ: مجموع AF برابر با AE×AC نیست. اختلاف = +10,574,341,000/"]
[null,null,null,"","","",""]
[null,null,null,{"$f":"IF(A7>0,1,\"\")","v":""},{"$f":"IF(A7>0,7,\"\")","v":""},{"$f":"IF(A7>0,1,\"\")","v":""},{"$f":"IF(A7>0,1,\"\")","v":""}]
[null,null,null,"","","",""]
[null,null,null,"","","",""]
[null,null,null,"","","",""]
[null,null,null,"","","",""]
[null,null,null,"","","",""]
[null,null,null,"","","",""]
[null,null,null,"","","",""]
[null,null,null,"","","",""]
[null,null,null,"","","",""]
[null,null,null,"","","",""]
[null,null,null,"","","",""]
[null,null,null,"","","",""]
[null,null,null,"","","",""]
[null,null,null,"","","",""]
[null,null,null,"","","",""]
[null,null,null,"","","",""]
[null,null,null,"","","",""]
[null,null,null,"","","",""]
[null,null,null,"","","",""]
[null,null,null,"","","",""]
[null,null,null,"","","",""]
[null,null,null,"","","",""]
[null,null,null,"","","",""]
[null,null,null,"","","",""]
[null,null,null,"","","",""]
[null,null,null,"","","",""]
[null,null,null,"","","",""]
[null,null,null,"","","",""]
[null,null,null,"","","",""]
[null,null,null,"","","",""]
[null,null,null,"","","",""]
[null,null,null,"","","",""]
[null,null,null,"","","",""]
[null,null,null,"","","",""]
[null,null,null,"","","",""]
[null,null,null,"","","",""]
[null,null,null,"","","",""]
[null,null,null,"","","",""]
[null,null,null,"","","",""]
[null,null,null,"","","",""]
[null,null,null,"","","",""]
[null,null,null,"","","",""]
[null,null,null,"","","",""]
[null,null,null,"","","",""]
[null,null,null,"","","",""]
[null,null,null,"","","",""]
[null,null,null,"","","",""]
[null,null,null,"","","",""]
[null,null,null,"","","",""]
[null,null,null,"","","",""]
[null,null,null,"","","",""]
[null,null,null,"","","",""]
[null,null,null,"","","",""]
[null,null,null,"","","",""]
[null,null,null,"","","",""]
[null,null,null,"","","",""]
[null,null,null,"","","",""]
[null,null,null,"","","",""]
[null,null,null,"","","",""]
[null,null,null,"","","",""]
[null,null,null,"","","",""]
[null,null,null,"","","",""]
[null,null,null,"","","",""]
[null,null,null,{"$f":"IF(A71>0,1,\"\")","v":""},{"$f":"IF(A71>0,7,\"\")","v":""},{"$f":"IF(A71>0,1,\"\")","v":""},{"$f":"IF(A71>0,1,\"\")","v":""}]
[null,null,null,"","","",""]
[null,null,null,"","","",""]
[null,null,null,"","","",""]
[null,null,null,"","","",""]
[null,null,null,"","","",""]
[null,null,null,"","","",""]
[null,null,null,"","","",""]
[null,null,null,"","","",""]
[null,null,null,"","","",""]
[null,null,null,"","","",""]
[null,null,null,"","","",""]
[null,null,null,"","","",""]
[null,null,null,"","","",""]
[null,null,null,"","","",""]
[null,null,null,"","","",""]
[null,null,null,"","","",""]
[null,null,null,"","","",""]
[null,null,null,"","","",""]
[null,null,null,"","","",""]
[null,null,null,"","","",""]
[null,null,null,"","","",""]
[null,null,null,"","","",""]
[null,null,null,"","","",""]
[null,null,null,"","","",""]
[null,null,null,"","","",""]
[null,null,null,"","","",""]
[null,null,null,"","","",""]
[null,null,null,"","","",""]
[null,null,null,"","","",""]
[null,null,null,"","","",""]
[null,null,null,"","","",""]
[null,null,null,"","","",""]
[null,null,null,"","","",""]
[null,null,null,"","","",""]
[null,null,null,"","","",""]
[null,null,null,"","","",""]
[null,null,null,"","","",""]
[null,null,null,"","","",""]
[null,null,null,"","","",""]
[null,null,null,"","","",""]
[null,null,null,"","","",""]
[null,null,null,"","","",""]
[null,null,null,"","","",""]
[null,null,null,"","","",""]
[null,null,null,"","","",""]
[null,null,null,"","","",""]
[null,null,null,"","","",""]
[null,null,null,"","","",""]
[null,null,null,"","","",""]
[null,null,null,"","","",""]
[null,null,null,"","","",""]
[null,null,null,"","","",""]
[null,null,null,"","","",""]
[null,null,null,"","","",""]
[null,null,null,"","","",""]
[null,null,null,"","","",""]
[null,null,null,"","","",""]
[null,null,null,"","","",""]
[null,null,null,"","","",""]
[null,null,null,"","","",""]
[null,null,null,"","","",""]
[null,null,null,"","","",""]
[null,null,null,"","","",""]
[null,null,null,{"$f":"IF(A135>0,1,\"\")","v":""},{"$f":"IF(A135>0,7,\"\")","v":""},{"$f":"IF(A135>0,1,\"\")","v":""},{"$f":"IF(A135>0,1,\"\")","v":""}]
[null,null,null,"","","",""]
[null,null,null,"","","",""]
[null,null,null,"","","",""]
[null,null,null,"","","",""]
[null,null,null,"","","",""]
[null,null,null,"","","",""]
[null,null,null,"","","",""]
[null,null,null,"","","",""]
[null,null,null,"","","",""]
[null,null,null,"","","",""]
[null,null,null,"","","",""]
[null,null,null,"","","",""]
[null,null,null,"","","",""]
[null,null,null,"","","",""]
[null,null,null,"","","",""]
[null,null,null,"","","",""]
[null,null,null,"","","",""]
[null,null,null,"","","",""]
[null,null,null,"","","",""]
[null,null,null,"","","",""]
[null,null,null,"","","",""]
[null,null,null,"","","",""]
[null,null,null,"","","",""]
[null,null,null,"","","",""]
[null,null,null,"","","",""]
[null,null,null,"","","",""]
[null,null,null,"","","",""]
[null,null,null,"","","",""]
[null,null,null,"","","",""]
[null,null,null,"","","",""]
[null,null,null,"","","",""]
[null,null,null,"","","",""]
[null,null,null,"","","",""]
[null,null,null,"","","",""]
[null,null,null,"","","",""]
[null,null,null,"","","",""]
[null,null,null,"","","",""]
[null,null,null,"","","",""]
[null,null,null,"","","",""]
[null,null,null,"","","",""]
[null,null,null,"","","",""]
[null,null,null,"","","",""]
[null,null,null,"","","",""]
[null,null,null,"","","",""]
[null,null,null,"","","",""]
[null,null,null,"","","",""]
[null,null,null,"","","",""]
[null,null,null,"","","",""]
[null,null,null,"","","",""]
[null,null,null,"","","",""]
[null,null,null,"","","",""]
[null,null,null,"","","",""]
[null,null,null,"","","",""]
[null,null,null,"","","",""]
[null,null,null,"","","",""]
[null,null,null,"","","",""]
[null,null,null,"","","",""]
[null,null,null,"","","",""]
[null,null,null,"","","",""]
[null,null,null,"","","",""]
[null,null,null,"","","",""]
[null,null,null,"","","",""]
[null,null,null,"","","",""]
[null,null,null,{"$f":"IF(A199>0,1,\"\")","v":""},{"$f":"IF(A199>0,7,\"\")","v":""},{"$f":"IF(A199>0,1,\"\")","v":""},{"$f":"IF(A199>0,1,\"\")","v":""}]
[null,null,null,"","","",""]
[null,null,null,"","","",""]
[null,null,null,"","","",""]
[null,null,null,"","","",""]
[null,null,null,"","","",""]
[null,null,null,"","","",""]
[null,null,null,"","","",""]
[null,null,null,"","","",""]
[null,null,null,"","","",""]
[null,null,null,"","","",""]
[null,null,null,"","","",""]
[null,null,null,"","","",""]
[null,null,null,"","","",""]
[null,null,null,"","","",""]
[null,null,null,"","","",""]
[null,null,null,"","","",""]
[null,null,null,"","","",""]
[null,null,null,"","","",""]
[null,null,null,"","","",""]
[null,null,null,"","","",""]
[null,null,null,"","","",""]
[null,null,null,"","","",""]
[null,null,null,"","","",""]
[null,null,null,"","","",""]
[null,null,null,"","","",""]
[null,null,null,"","","",""]
[null,null,null,"","","",""]
[null,null,null,"","","",""]
[null,null,null,"","","",""]
[null,null,null,"","","",""]
[null,null,null,"","","",""]
[null,null,null,"","","",""]
[null,null,null,"","","",""]
[null,null,null,"","","",""]
[null,null,null,"","","",""]
[null,null,null,"","","",""]
[null,null,null,"","","",""]
[null,null,null,"","","",""]
[null,null,null,"","","",""]
[null,null,null,"","","",""]
[null,null,null,"","","",""]
[null,null,null,"","","",""]
[null,null,null,"","","",""]
[null,null,null,"","","",""]
[null,null,null,"","","",""]
[null,null,null,"","","",""]
[null,null,null,"","","",""]
[null,null,null,"","","",""]
[null,null,null,"","","",""]
[null,null,null,"","","",""]
[null,null,null,"","","",""]
[null,null,null,"","","",""]
[null,null,null,"","","",""]
[null,null,null,"","","",""]
[null,null,null,"","","",""]
[null,null,null,"","","",""]
[null,null,null,"","","",""]
[null,null,null,"","","",""]
[null,null,null,"","","",""]
[null,null,null,"","","",""]
[null,null,null,"","","",""]
[null,null,null,"","","",""]
[null,null,null,"","","",""]
[null,null,null,{"$f":"IF(A263>0,1,\"\")","v":""},{"$f":"IF(A263>0,7,\"\")","v":""},{"$f":"IF(A263>0,1,\"\")","v":""},{"$f":"IF(A263>0,1,\"\")","v":""}]
[null,null,null,"","","",""]
[null,null,null,"","","",""]
[null,null,null,"","","",""]
[null,null,null,"","","",""]
[null,null,null,"","","",""]
[null,null,null,"","","",""]
[null,null,null,"","","",""]
[null,null,null,"","","",""]
[null,null,null,"","","",""]
[null,null,null,"","","",""]
[null,null,null,"","","",""]
[null,null,null,"","","",""]
[null,null,null,"","","",""]
[null,null,null,"","","",""]
[null,null,null,"","","",""]
[null,null,null,"","","",""]
[null,null,null,"","","",""]
[null,null,null,"","","",""]
[null,null,null,"","","",""]
[null,null,null,"","","",""]
[null,null,null,"","","",""]
[null,null,null,"","","",""]
[null,null,null,"","","",""]
[null,null,null,"","","",""]
[null,null,null,"","","",""]
[null,null,null,"","","",""]
[null,null,null,"","","",""]
[null,null,null,"","","",""]
[null,null,null,"","","",""]
[null,null,null,"","","",""]
[null,null,null,"","","",""]
[null,null,null,"","","",""]
[null,null,null,"","","",""]
[null,null,null,"","","",""]
[null,null,null,"","","",""]
[null,null,null,"","","",""]
[null,null,null,"","","",""]
[null,null,null,"","","",""]
[null,null,null,"","","",""]
[null,null,null,"","","",""]
[null,null,null,"","","",""]
[null,null,null,"","","",""]
[null,null,null,"","","",""]
[null,null,null,"","","",""]
[null,null,null,"","","",""]
[null,null,null,"","","",""]
[null,null,null,"","","",""]
[null,null,null,"","","",""]
[null,null,null,"","","",""]
[null,null,null,"","","",""]
[null,null,null,"","","",""]
[null,null,null,"","","",""]
[null,null,null,"","","",""]
[null,null,null,"","","",""]
[null,null,null,"","","",""]
[null,null,null,"","","",""]
[null,null,null,"","","",""]
[null,null,null,"","","",""]
[null,null,null,"","","",""]
[null,null,null,"","","",""]
[null,null,null,"","","",""]
[null,null,null,"","","",""]
[null,null,null,"","","",""]
[null,null,null,{"$f":"IF(A327>0,1,\"\")","v":""},{"$f":"IF(A327>0,7,\"\")","v":""},{"$f":"IF(A327>0,1,\"\")","v":""},{"$f":"IF(A327>0,1,\"\")","v":""}]
[null,null,null,"","","",""]
[null,null,null,"","","",""]
[null,null,null,"","","",""]
[null,null,null,"","","",""]
[null,null,null,"","","",""]
[null,null,null,"","","",""]
[null,null,null,"","","",""]
[null,null,null,"","","",""]
[null,null,null,"","","",""]
[null,null,null,"","","",""]
[null,null,null,"","","",""]
[null,null,null,"","","",""]
[null,null,null,"","","",""]
[null,null,null,"","","",""]
[null,null,null,"","","",""]
[null,null,null,"","","",""]
[null,null,null,"","","",""]
[null,null,null,"","","",""]
[null,null,null,"","","",""]
[null,null,null,"","","",""]
[null,null,null,"","","",""]
[null,null,null,"","","",""]
[null,null,null,"","","",""]
[null,null,null,"","","",""]
[null,null,null,"","","",""]
[null,null,null,"","","",""]
[null,null,null,"","","",""]
[null,null,null,"","","",""]
[null,null,null,"","","",""]
[null,null,null,"","","",""]
[null,null,null,"","","",""]
[null,null,null,"","","",""]
[null,null,null,"","","",""]
[null,null,null,"","","",""]
[null,null,null,"","","",""]
[null,null,null,"","","",""]
[null,null,null,"","","",""]
[null,null,null,"","","",""]
[null,null,null,"","","",""]
[null,null,null,"","","",""]
[null,null,null,"","","",""]
[null,null,null,"","","",""]
[null,null,null,"","","",""]
[null,null,null,"","","",""]
[null,null,null,"","","",""]
[null,null,null,"","","",""]
[null,null,null,"","","",""]
[null,null,null,"","","",""]
[null,null,null,"","","",""]
[null,null,null,"","","",""]
[null,null,null,"","","",""]
[null,null,null,"","","",""]
[null,null,null,"","","",""]
[null,null,null,"","","",""]
[null,null,null,"","","",""]
[null,null,null,"","","",""]
[null,null,null,"","","",""]
[null,null,null,"","","",""]
[null,null,null,"","","",""]
[null,null,null,"","","",""]

{"sheet":"توضیح ستونها","index":1,"n_rows":6,"n_cols":13,"rows_kept":6,"cut":false,"hidden":false,"merged":[[2,8,5,8],[2,9,5,9],[2,10,5,10],[2,11,5,11],[2,12,5,12]]}
["کد صورت حساب در سیستم حسابداری","کد طرف حساب در سیستم حسابداری","تاریخ و زمان صدور صورت حساب","نوع صورت حساب","الگوی صورت حساب","موضوع صورت حساب","روش تسویه","نوع ارز ","مجموع ارزش ارزی","مجموع وزن خالص (کیلوگرم)","نرخ برابری ارز","مبلغ کل کالا/خدمت ریالی","وزن خالص (کیلوگرم)"]
[null,null,null,1,7,1,1,"USD"]
[null,"میتواند خالی باشد ","مثل هر کدام از نمونه های پایین ","فقط 1 ","فقط 7 برای صادرات ","فقط 1","فقط 1","EUR","کل ارزش ارزی کوتاژ ","کل وزن کوتاژ اگر کوتاژ چند ردیف کالا است اعداد باید تکرار شوند  ","نرخ برابری ارز بر اساس کوتاژ ","مبلغ ارزش ریالی هر ردیف وارد شود ","وزن هر ردیف جدا "]
[null,null,"1403-01-01",null,null,null,null,"پوند GBP"]
[null,null,"1403/01/01",null,null,null,null,"روبل RUB"]
[null,null,null,null,null,null,null,"CNH یوآن "]

{"sheet":"روش دوم محاسبه ","index":2,"n_rows":21,"n_cols":5,"rows_kept":21,"cut":false,"hidden":false,"merged":[[0,3,0,4],[1,3,1,4],[16,0,17,0],[18,1,18,4],[19,1,19,4],[20,1,20,4]]}
["مجموع ارزش ارزی","نرخ برابری ارز","مجموع ارزش گمرکی","توضیحات "]
[1000,100000,{"$f":"ROUNDDOWN(A2*B2,0)","v":100000000},{"$f":"IF((A2*B2)-C2>0,\"مجموع ارزش ریالی به موجب دستورالعمل سازمان نمیتواند اعشاری باشد \",\"مشکلی وجود ندارد \")","v":"مشکلی وجود ندارد "}]
[]
["ردیف ","مبلغ کل کالا/خدمت ریالی","مبلغ کل کالا/خدمت ارزی ","ریال درستی که باید طبق دستورالعمل ثبت شود ","ارز نهایی"]
[1,null,{"$f":"ROUNDDOWN(B5/B$2,4-IF(B$2*0.0001=INT(B$2*0.0001),0,LEN(TEXT(B$2*0.0001,\"0.############\"))-FIND(\".\",TEXT(B$2*0.0001,\"0.############\"))))","v":0},{"$f":"IF(ROUNDDOWN(IF(B5=0,0,IF(IF(SUM(B6:B7)=0,1,0)=1,C5*B$2+C$2-SUM(C$5:C$15)*B$2,C5*B$2)),0)<0,\"اشتباه\",ROUNDDOWN(IF(B5=0,0,IF(IF(SUM(B6:B7)=0,1,0)=1,C5*B$2+C$2-SUM(C$5:C$15)*B$2,C5*B$2)),0))","v":0},{"$f":"IFERROR(ROUNDDOWN(D5/B$2,4),\"اشتباه\")","v":0}]
[2,null,0,{"$f":"IF(ROUNDDOWN(IF(B6=0,0,IF(IF(SUM(B7:B8)=0,1,0)=1,C6*B$2+C$2-SUM(C$5:C$15)*B$2,C6*B$2)),0)<0,\"اشتباه\",ROUNDDOWN(IF(B6=0,0,IF(IF(SUM(B7:B8)=0,1,0)=1,C6*B$2+C$2-SUM(C$5:C$15)*B$2,C6*B$2)),0))","v":0},{"$f":"IFERROR(ROUNDDOWN(D6/B$2,4),\"اشتباه\")","v":0}]
[1,null,0,0,0]
[2,null,0,0,0]
[1,null,0,0,0]
[2,null,0,0,0]
[null,null,0,0,0]
[null,null,0,0,0]
[null,null,0,0,0]
[null,null,0,0,0]
[null,null,0,0,0]
["جمع کل ",{"$f":"SUM(B5:B15)","v":0},{"$f":"SUM(C5:C15)","v":0},{"$f":"SUM(D5:D15)","v":0},{"$f":"SUM(E5:E15)","v":0}]
["اختلاف ",{"$f":"C2-B16","v":100000000},{"$f":"IF(A2-C16<1,0,A2-C16)","v":1000},{"$f":"C2-D16","v":100000000},{"$f":"E16-A2","v":-1000}]
[null,{"$f":"IF(AND(C2-B16>=-1000, C2-B16<=1000), \"مشکلی ندارد\", \"مبالغ کنترل شود\")","v":"مبالغ کنترل شود"},null,{"$f":"IF(AND(D17>=-1000, D17<=1000), \"مشکلی ندارد\", \"مبالغ کنترل شود\")","v":"مبالغ کنترل شود"},{"$f":"IF(AND(E17>=-1000, E17<=1000), \"مشکلی ندارد\", \"مبالغ کنترل شود\")","v":"مشکلی ندارد"}]
[null,"تکمیل شود و الزامی"]
[null,"حاوی فرمول است تغییر داده نشود "]
[null,"هشدارها "]

{"sheet":"نکات دستورالعمل","index":3,"n_rows":89,"n_cols":1,"rows_kept":89,"cut":false,"hidden":false,"merged":[]}
["دستورالعمل صدور صورتحسابهای الکترونیکی (مربوط به صادرات)"]
[0]
["موارد زیر برگرفته از سند شناسه RC_IITP.IS _V7.3 : آذر ماه 1403 می باشد."]
["1- صفحه 24/ ردیف 8"]
["در صورتحسابهای الکترونیکی با الگوی صادرات، تاریخ و زمان صدور صورتحساب میبایست برابر و یا بزرگتر از تاریخ کوتاژ اظهارنامه گمرکی باشد."]
["2- صفحه 29 / ردیف 10 – بالای صفحه"]
["در صورتحسابهای الکترونیکی با الگوی صادرات، چنانچه همه یا بخشی از اقالم صادراتی مرجوع شده ولی صادرکننده برای آن صورتحساب اصلاحی صادر ننماید، مشمول جرائم موضوع ماده (9) قانون پایانه های فروشگاهی و سامانه مودیان خواهد شد."]
["3- صفحه 29 / ردیف 1 – وسط صفحه"]
["الگوهای صورتحساب الکترونیکی نوع اول عبارتند از الگوهای صورتحساب الکترونیکی نوع اول عبارتند از: الگوی اول (فروش) ۱ الگوی دوم فروش ارزی ۲ الگوی سوم صورتحساب طلا جواهر و (پلاتین) ۳، الگوی چهارم قرارداد پیمانکاری ۴، الگوی پنجم قبوض خدماتی ۵ الگوی ششم بلیط هواپیما ۶ ، الگوی هفتم (صادرات)، الگوی هشتم (بارنامه) و الگوی یازدهم بورس اوراق بهادار مبتنی بر کالا۱1."]
["4- صفحه 29 / ردیف 7 پایین صفحه"]
["صورتحسابهای الکترونیکی با الگوی صادرات مختص ثبت فروشهای صادراتی میباشد."]
["5- صفحه 30 / ردیف 8 بالای صفحه"]
["در صورتحساب های الکترونیکی با الگوی صادرات چنانچه صورتحساب صادره با اطلاعات اظهار نامه گمرکی مربوطه مطابقت نداشته باشد مودی کم اظهاری نموده باشد، صورتحساب صادره در حکم صورتحساب نوع دوم با الگوی فروش خواهد بود و مودی مشمول جرائم موضوع ماده (۹) قانون پایانه های فروشگاهی خواهد بود."]
["6- صفحه 30 / ردیف 2 – وسط صفحه"]
["در صورتحسابهای الکترونیکی با الگوی صادرات بارنامه و بورس اوراق بهادار مبتنی بر کالا موضوع صورتحساب شامل اصلی ۱، اصلاحی ۲، ابطالی ۳ است."]
["7- صفحه 30 / ردیف 6 – پایین صفحه"]
["در مورد صورتحسابهای الکترونیکی با الگوی صادرات و با موضوع اصالحی و ابطالی، تاریخ و زمان صدور صورتحساب اصالحی/ابطالی میبایست از تاریخ کوتاژ اظهارنامه گمرکی بزرگتر و یا مساوی آن باشد."]
["8- صفحه 32 / ردیف 2"]
["در صورتی که صورتحساب از نوع اول (صادرات) و بورس اوراق بهادار مبتنی بر کالا ، نوع دوم و یا سوم باشد، ثبت اطلاعات مربوط به خریدار، الزامی نیست."]
["9- صفحه33 / ردیف 17"]
["در صورتحسابهای الکترونیکی با الگوی صادرات و بورس اوراق بهادار مبتنی بر کالا، نیازی به درج اطلاعات خریدار نیست."]
["10- صفحه 34 / ردیف 1-4"]
["رعایت تناظر یک به یک اظهار نامه گمرکی و صورتحساب الکترونیکی صادراتی بر اساس شماره کوتاژ جهت بهره مندی از معافیت نرخ صفر و مشوقهای مالیاتی الزامی است."]
["در صورتحساب های الکترونیکی با الگوی صادرات ثبت فیلد شماره کوتاژ اظهار نامه گمرکی، اختیاری است. لیکن شرط بهره مندی از معافیت نرخ صفر سیستمی و مشوقهای مالیاتی ثبت این فیلد مطابق با اظهار نامه گمرکی است. "]
["در صورتحساب های الکترونیکی با الگوی صادرات ثبت فیلد شماره کوتاژ اظهار نامه گمرکی، اختیاری است و در صورت ثبت این فیلد می بایست دقیقا مطابق با شماره کوتاژ اظهار نامه گمرکی باشد. "]
["در صورتحساب های الکترونیکی با الگوی صادرات در صورت ثبت این فیلد تطابق اطلاعاتی در صورتحساب صادراتی با اظهار نامه گمرکی بر اساس شماره کوتاژ اظهار نامه گمرکی به منظور صحت سنجی اطلاعات صورتحساب انجام می شود."]
["11- صفحه 35 / ردیف 4 و 5"]
["در صورت اصلاح اظهار نامه گمرکی و صدور صورتحساب صادراتی اصلاحی تاریخ کوتاژ اظهارنامه گمرکی صورتحساب اصلاحی از تاریخ کوتاژ اظهار نامه گمرکی صورتحساب مرجع نباید کوچکتر باشد."]
["در صورتحسابهای الکترونیکی با الگوی صادرات ثبت فیلد تاریخ کوتاژ اظهار نامه گمرکی، اختیاری است. لیکن شرط بهره مندی از معافیت نرخ صفر سیستمی و مشوقهای مالیاتی ثبت این فیلد مطابق با اظهار نامه گمرکی است."]
["12- صفحه 40 / ردیف 3"]
["در مورد صورتحسابهای الکترونیکی با الگوی صادرات مجموع صورتحساب (Xs) برابر است با مجموع ارزش "]
["ریالی و مجموع مالیات بر ارزش افزوده و مجموع سایر مالیات و عوارض و وجوه قانونی "]
["فرمول محاسبه به صورت زیر میباشد. "]
["Xs= RVs+W+W2"]
["RVs : مجموع ارزش ریالی "]
["W : مجموع مالیات بر ارزش افزوده "]
["W2 : مجموع سایر مالیات، عوارض و وجوه قانونی "]
["13- صفحه 40 ردیف / 4 پایین صفحه"]
["در صورتحسابهای الکترونیکی با الگوی صادرات در صورتی که شناسه کالا خدمت مربوط به ارائه خدمت باشد، فيلد مجموع وزن خالص اختیاری است."]
["14- صفحه 43 / ردیف4"]
["در صورتحساب های الکترونیکی با الگوی قبوض خدماتی ، صادرات و بورس اوراق بهادار مبتنی بر کالا، روش تسویه نقدی است."]
["15- صفحه 48 / ردیف 3"]
["چنانچه شناسه موجود در صورتحساب صادرات با شناسه موجود در اظهارنامه گمرکی مطابقت نداشته باشد صورتحساب صادره در حکم صورتحساب نوع دوم با الگوی فروش خواهد بود و مودی مشمول جرائم موضوع ماده (۹) قانون پایانه های فروشگاهی خواهد بود."]
["16- صفحه 49 / ردیف 1"]
["در صورتحساب های الکترونیکی با الگوی صادرات منظور از این فیلد تعداد اقلام هر کالا خدمت در اظهارنامه گمرکی است."]
["17- صفحه 51 / ردیف 5"]
["در صورتحساب های الکترونیکی با الگوی صادرات در صورتی که شناسه کالا خدمت مربوط به ارائه خدمت باشد فيلد وزن خالص اختیاری است."]
["18- صفحه 52 / ردیف 3"]
["در صورتحساب الکترونیکی با الگوی صادرات ثبت فیلد مبلغ واحد (Cs) اختیاری است. و از رابطه زیر تبعیت می نماید. "]
["Cs= RV/As"]
["As : تعداد / مقدار "]
["RV ارزش ریالی کالا خدمت "]
["19- صفحه 54 / ردیف 1 و 2"]
["در صورتحسابهای الکترونیکی با الگوی فروش ارز و صادرات نوع ارز می بایست از کد ایزوی ۴۲۱۷ منبع مذکور در پانویس استخراج و ثبت شود."]
["در صورتحسابهای الکترونیکی با الگوی صادرات نوع ارز مورد معامله میبایست با اظهار نامه گمرکی مطابقت داشته باشد."]
["20- صفحه 55 / ردیف 2"]
["در صورتحسابهای الکترونیکی با الگوی صادرات نرخ ارز مورد معامله میبایست با نرخ ارز پروانه گمرکی مطابقت داشته باشد."]
["21- صفحه 56 / ردیف 3"]
["چنانچه معادل شماره کوتاژ اعلامی در صورتحساب اظهار نامه گمرکی صادراتی وجود داشته باشد و ارزش ریالی کالا در صورتحساب با اظهارنامه مطابقت نداشته باشد صورتحساب صادره به صورت سیستمی تایید نشده و بدهی آن برای مودی لحاظ خواهد شد."]
["22- صفحه 57 / ردیف 3"]
["در صورتحساب های الکترونیکی با الگوی صادرات ارزش ارزی کالا می بایست دقیقا منطبق با اظهار نامه گمرکی در صورتحساب ثبت شود."]
["23- صفحه 61 / ردیف 5"]
["نرخ مالیات بر ارزش افزوده در صورتحسابهای با الگوی صادرات برابر صفر است."]
["24- صفحه 64 / ردیف 5 و 6"]
["در صورتحساب های الکترونیکی با الگوی صادرات مبلغ سایر مالیات و عوارض (Ks2) که بر اساس نوع کالا یا خدمت تعیین می شود. اگر دارای نرخ تعیین شده باشد از فرمول زیر محاسبه می شود. "]
["Ks2=RV* J2/100 "]
["J2 : نرخ سایر مالیات، عوارض "]
["RV : ارزش ریالی کالا "]
["فاقد نرخ تعیین شده باشد میتواند بدون انجام محاسبه و در قالب عدد ثابت در صورتحساب درج شود."]
["در صورتحساب های الکترونیکی با الگوی صادرات مبلغ سایر وجوه قانونی (K3) که بر اساس نوع کالا یا خدمت تعیین میشود. اگر "]
["دارای نرخ تعیین شده باشد از فرمول زیر محاسبه می شود. "]
["Ks3=RV* J3/100 "]
["J3 نرخ سایر وجوه قانونی "]
["RV : ارزش ریالی کالا "]
["فاقد نرخ تعیین شده باشد میتواند بدون انجام محاسبه و در قالب عدد ثابت در صورتحساب درج شود."]
["25- صفحه 72 ردیف 4"]
["در صورتحساب های الکترونیکی با الگوی صادرات مبلغ کل کالا خدمت از فرمول زیر محاسبه می شود. "]
["Os= RV + Ks + Ks2 + Ks3"]
["RV : ارزش ریالی کالا "]
["K : مبلغ مالیات بر ارزش افزوده "]
["KS2 : مبلغ سایر مالیات و عوارض "]
["K3 : مبلغ سایر وجوه قانونی "]
["4- صفحه 61"]
["نرخ مالیات بر ارزش افزوده در صورتحسابهای با الگوی صادرات برابر صفر است"]
["مبلغ کل ارزی C4"]
["نرخ برابری ارز B2"]
["نزدیک ترین عدد صحیحی میخوام که وقتی مبلغ کل ارزی * نرخ برابری ارز ضرب میشود که اون عدد صحیح "]
["1-      نباید کوچکتر از ( مبلغ کل ارزش * نرخ برابری ارز  )-نرخ برابری ارز 10% "]
["2-      نباید بزرگتر از ( مبلغ کل ارزش * نرخ برابری ارز  )+ نرخ 10%"]